fUSD/lending_fUSD_20250217
["ID","MTS","AMOUNT","RATE_DAILY","PERIOD"]
[353360529,1739795453340,-500.0,0.00013698,2]
[353360530,1739795453349,-500.0,0.00013698,2]
[353360531,1739795453359,-2501.23,0.00013698,2]
[353360532,1739795453369,-1206.07,0.00013698,2]
[353360533,1739795453379,-500.0,0.00013698,2]
[353360534,1739795453389,-500.0,0.00013698,2]
[353360535,1739795453399,-500.0,0.00013698,2]
[353360536,1739795453408,-1481.86,0.00013698,2]
[353360537,1739795453418,-189.893697,0.00013698,2]
[353360538,1739795453428,-3668.22,0.00013698,2]
[353360539,1739795453437,-904.11,0.00013698,2]
[353360540,1739795453446,-500.0,0.00013698,2]
[353360541,1739795453455,-1595.39,0.00013698,2]
[353360542,1739795453465,-2858.39,0.00013698,2]
[353360543,1739795453475,-922.54,0.00013698,2]
[353360544,1739795453485,-500.0,0.00013698,2]
[353360545,1739795453495,-371.34832869,0.00013698,2]
[353360546,1739795453504,-1700.3,0.00013698,2]
[353360547,1739795453514,-650.6,0.00013698,2]
[353360548,1739795453524,-500.0,0.00013698,2]
[353360549,1739795453533,-500.0,0.00013698,2]
[353360550,1739795453543,-508.10423285,0.00013698,2]
[353360551,1739795453553,-500.0,0.00013698,2]
[353360552,1739795453563,-1985.8,0.00013698,2]
[353360553,1739795453573,-1308.59,0.00013698,2]
[353360554,1739795453584,-1813.98,0.00013698,2]
[353360555,1739795453593,-500.0,0.00013698,2]
[353360556,1739795453603,-4538.96,0.00013698,2]
[353360557,1739795453612,-500.0,0.00013698,2]
[353360558,1739795453621,-1023.9,0.00013698,2]
[353360559,1739795453631,-500.0,0.00013698,2]
[353360560,1739795453640,-500.0,0.00013698,2]
[353360561,1739795453649,-2175.03,0.00013698,2]
[353360562,1739795453659,-1171.32,0.00013698,2]
[353360563,1739795453668,-3207.01,0.00013698,2]
[353360564,1739795453678,-776.24,0.00013698,2]
[353360565,1739795453688,-500.0,0.00013698,2]
[353360566,1739795453698,-2020.01,0.00013698,2]
[353360567,1739795453707,-4376.42,0.00013698,2]
[353360568,1739795453717,-500.0,0.00013698,2]
[353360569,1739795453728,-500.0,0.00013698,2]
[353360570,1739795453737,-500.0,0.00013698,2]
[353360571,1739795453747,-757.72,0.00013698,2]
[353360572,1739795453757,-2432.51,0.00013698,2]
[353360573,1739795453767,-824.6,0.00013698,2]
[353360574,1739795453776,-1563.13,0.00013698,2]
[353360575,1739795453785,-500.0,0.00013698,2]
[353360576,1739795453795,-2584.01,0.00013698,2]
[353360577,1739795453805,-500.0,0.00013698,2]
[353360578,1739795453816,-556.8,0.00013698,2]
[353360579,1739795453825,-504.3233696,0.00013698,2]
[353360580,1739795453834,-1868.38,0.00013698,2]
[353360581,1739795453844,-500.0,0.00013698,2]
[353360582,1739795453853,-500.0,0.00013698,2]
[353360583,1739795453862,-500.0,0.00013698,2]
[353360584,1739795453872,-593.55,0.00013698,2]
[353360585,1739795453882,-500.0,0.00013698,2]
[353360586,1739795453892,-1829.54,0.00013698,2]
[353360587,1739795453901,-4155.08,0.00013698,2]
[353360588,1739795453910,-1076.47,0.00013698,2]
[353360589,1739795453919,-500.0,0.00013698,2]
[353360590,1739795453934,-2910.87,0.00013698,2]
[353360591,1739795453943,-2592.15,0.00013698,2]
[353360592,1739795453953,-1816.8,0.00013698,2]
[353360593,1739795453963,-500.0,0.00013698,2]
[353360594,1739795453974,-500.0,0.00013698,2]
[353360595,1739795453984,-1586.59,0.00013698,2]
[353360596,1739795453994,-564.17,0.00013698,2]
[353360597,1739795454005,-2050.71,0.00013698,2]
[353360598,1739795454014,-500.0,0.00013698,2]
[353360599,1739795454024,-1421.32,0.00013698,2]
[353360600,1739795454033,-500.0,0.00013698,2]
[353360601,1739795454042,-2211.95,0.00013698,2]
[353360602,1739795454051,-3795.89,0.00013698,2]
[353360603,1739795454060,-2889.91,0.00013698,2]
[353360604,1739795454069,-9711.94,0.00013698,2]
[353360605,1739795454079,-500.0,0.00013698,2]
[353360606,1739795454089,-2485.67,0.00013698,2]
[353360607,1739795454098,-500.0,0.00013698,2]
[353360608,1739795454107,-771.81,0.00013698,2]
[353360609,1739795454117,-2481.54,0.00013698,2]
[353360610,1739795454126,-500.0,0.00013698,2]
[353360611,1739795454136,-509.89479419,0.00013698,2]
[353360612,1739795454146,-1665.29,0.00013698,2]
[353360613,1739795454156,-2144.55,0.00013698,2]
[353360614,1739795454166,-507.99461049,0.00013698,2]
[353360615,1739795454175,-500.0,0.00013698,2]
[353360616,1739795454185,-768.55,0.00013698,2]
[353360617,1739795454194,-3058.92,0.00013698,2]
[353360618,1739795454203,-993.31,0.00013698,2]
[353360619,1739795454213,-1812.73,0.00013698,2]
[353360620,1739795454222,-500.0,0.00013698,2]
[353360621,1739795454231,-500.75010759,0.00013698,2]
[353360622,1739795454241,-1919.27,0.00013698,2]
[353360623,1739795454251,-500.0,0.00013698,2]
[353360624,1739795454260,-2334.34,0.00013698,2]
[353360625,1739795454270,-500.0,0.00013698,2]
[353360626,1739795454279,-500.0,0.00013698,2]
[353360627,1739795454289,-1098.94,0.00013698,2]
[353360628,1739795454298,-1585.27,0.00013698,2]
[353360629,1739795454308,-504.37420472,0.00013698,2]
[353360630,1739795454318,-2647.9,0.00013698,2]
[353360631,1739795454328,-500.0,0.00013698,2]
[353360632,1739795454339,-2836.24,0.00013698,2]
[353360633,1739795454349,-1662.56,0.00013698,2]
[353360634,1739795454358,-2511.25,0.00013698,2]
[353360635,1739795454367,-500.56433318,0.00013698,2]
[353360636,1739795454378,-503.16866585,0.00013698,2]
[353360637,1739795454388,-1468.71,0.00013698,2]
[353360638,1739795454398,-2272.93,0.00013698,2]
[353360639,1739795454408,-1424.44,0.00013698,2]
[353360640,1739795454418,-500.0,0.00013698,2]
[353360641,1739795454427,-504.56402868,0.00013698,2]
[353360642,1739795454439,-1690.88,0.00013698,2]
[353360643,1739795454449,-3877.09,0.00013698,2]
[353360644,1739795454460,-2653.37,0.00013698,2]
[353360645,1739795454470,-1528.11,0.00013698,2]
[353360646,1739795454480,-2437.73,0.00013698,2]
[353360647,1739795454490,-2988.89,0.00013698,2]
[353360648,1739795454500,-500.0,0.00013698,2]
[353360649,1739795454510,-500.0,0.00013698,2]
[353360650,1739795454518,-500.0,0.00013698,2]
[353360651,1739795454528,-1238.87,0.00013698,2]
[353360652,1739795454538,-500.0,0.00013698,2]
[353360653,1739795454548,-2822.49,0.00013698,2]
[353360654,1739795454558,-500.0,0.00013698,2]
[353360655,1739795454567,-500.51919696,0.00013698,2]
[353360656,1739795454576,-500.0,0.00013698,2]
[353360657,1739795454586,-500.0,0.00013698,2]
[353360658,1739795454595,-645.15356199,0.00013698,2]
[353360659,1739795454605,-500.0,0.00013698,2]
[353360660,1739795454615,-585.81787053,0.00013698,2]
[353360661,1739795454624,-1885.85,0.00013698,2]
[353360662,1739795454635,-2987.13,0.00013698,2]
[353360663,1739795454644,-500.0,0.00013698,2]
[353360664,1739795454653,-500.0,0.00013698,2]
[353360665,1739795454663,-500.0,0.00013698,2]
[353360666,1739795454672,-500.0,0.00013698,2]
[353360667,1739795454681,-500.0,0.00013698,2]
[353360668,1739795454691,-2339.6,0.00013698,2]
[353360669,1739795454701,-500.0,0.00013698,2]
[353360670,1739795454710,-500.0,0.00013698,2]
[353360671,1739795454719,-505.58660641,0.00013698,2]
[353360672,1739795454729,-2054.27,0.00013698,2]
[353360673,1739795454738,-500.0,0.00013698,2]
[353360674,1739795454748,-500.0,0.00013698,2]
[353360675,1739795454758,-3048.72,0.00013698,2]
[353360676,1739795454768,-506.75703973,0.00013698,2]
[353360677,1739795454777,-6805.15,0.00013698,2]
[353360678,1739795454787,-500.0,0.00013698,2]
[353360679,1739795454796,-533.39570991,0.00013698,2]
[353360680,1739795455434,-1030.73429009,0.00013698,2]
[353360681,1739795455444,-500.0,0.00013698,2]
[353360682,1739795455453,-500.0,0.00013698,2]
[353360683,1739795455462,-500.0,0.00013698,2]
[353360684,1739795455472,-687.81488718,0.00013698,2]
[353360685,1739795455490,-6.36511282,0.00013698,2]
[353360686,1739795455500,-506.47782098,0.00013698,2]
[353360687,1739795455510,-500.0,0.00013698,2]
[353360688,1739795455520,-473.6252762,0.00013698,2]
[353360689,1739795455532,-26.3747238,0.00013698,2]
[353360690,1739795455542,-2711.24,0.00013698,2]
[353360691,1739795455551,-500.0,0.00013698,2]
[353360692,1739795455561,-1349.77,0.00013698,2]
[353360693,1739795455571,-500.0,0.00013698,2]
[353360694,1739795455580,-438.95729888,0.00013698,2]
[353360695,1739795455591,-591.37,0.00013698,2]
[353360696,1739795455601,-1611.45,0.00013698,2]
[353360697,1739795455611,-500.0,0.00013698,2]
[353360698,1739795455620,-1419.34,0.00013698,2]
[353360699,1739795455630,-2377.23,0.00013698,2]
[353360700,1739795455639,-2601.21,0.00013698,2]
[353360701,1739795455648,-590.38759407,0.00013698,2]
[353360702,1739795455658,-500.0,0.00013698,2]
[353360703,1739795455667,-630.69,0.00013698,2]
[353360704,1739795455677,-500.0,0.00013698,2]
[353360705,1739795455686,-2002.26,0.00013698,2]
[353360706,1739795455696,-605.32,0.00013698,2]
[353360707,1739795455705,-2734.16,0.00013698,2]
[353360708,1739795455715,-500.0,0.00013698,2]
[353360709,1739795455724,-1924.99,0.00013698,2]
[353360710,1739795455734,-500.0,0.00013698,2]
[353360711,1739795455744,-582.8,0.00013698,2]
[353360712,1739795455754,-500.0,0.00013698,2]
[353360713,1739795455763,-2768.03832947,0.00013698,2]
[353360714,1739795455776,-998.55167053,0.00013698,2]
[353360715,1739795455785,-1851.44832947,0.00013698,2]
[353360716,1739795455820,-300.92167053,0.00013698,2]
[353360717,1739795455830,-501.35357825,0.00013698,2]
[353360718,1739795455841,-2013.04,0.00013698,2]
[353360719,1739795455850,-500.0,0.00013698,2]
[353360720,1739795455859,-3579.88,0.00013698,2]
[353360721,1739795455868,-1993.52,0.00013698,2]
[353360722,1739795455878,-767.73,0.00013698,2]
[353360723,1739795455887,-1387.95,0.00013698,2]
[353360724,1739795455896,-2325.81,0.00013698,2]
[353360725,1739795455905,-500.0,0.00013698,2]
[353360726,1739795455914,-836.66,0.00013698,2]
[353360727,1739795455924,-3619.94,0.00013698,2]
[353360728,1739795455937,-819.53,0.00013698,2]
[353360729,1739795455946,-500.0,0.00013698,2]
[353360730,1739795455956,-642.89,0.00013698,2]
[353360731,1739795455967,-500.0,0.00013698,2]
[353360732,1739795455976,-2795.67,0.00013698,2]
[353360733,1739795455986,-3222.82,0.00013698,2]
[353360734,1739795455995,-500.0,0.00013698,2]
[353360735,1739795456008,-500.0,0.00013698,2]
[353360736,1739795456019,-1068.72,0.00013698,2]
[353360737,1739795456028,-500.69768678,0.00013698,2]
[353360738,1739795456037,-1671.8,0.00013698,2]
[353360739,1739795456047,-500.0,0.00013698,2]
[353360740,1739795456056,-4400.76,0.00013698,2]
[353360741,1739795456067,-1901.8,0.00013698,2]
[353360742,1739795456076,-500.0,0.00013698,2]
[353360743,1739795456086,-500.0,0.00013698,2]
[353360744,1739795456095,-500.0,0.00013698,2]
[353360745,1739795456105,-1960.04,0.00013698,2]
[353360746,1739795456114,-1594.45,0.00013698,2]
[353360747,1739795456124,-151.0,0.00013698,2]
[353360748,1739795456134,-1810.27,0.00013698,2]
[353360749,1739795456143,-884.91,0.00013698,2]
[353360750,1739795456152,-638.24429928,0.00013698,2]
[353360751,1739795456162,-500.0,0.00013698,2]
[353360752,1739795456171,-1873.58,0.00013698,2]
[353360753,1739795456181,-500.0,0.00013698,2]
[353360754,1739795456190,-500.0,0.00013698,2]
[353360755,1739795456199,-500.0,0.00013698,2]
[353360756,1739795456209,-500.0,0.00013698,2]
[353360757,1739795456218,-196.11594636,0.00013698,2]
[353360758,1739795456228,-500.0,0.00013698,2]
[353360759,1739795456238,-3167.41,0.00013698,2]
[353360760,1739795456248,-500.0,0.00013698,2]
[353360761,1739795456258,-500.0,0.00013698,2]
[353360762,1739795456268,-502.77408485,0.00013698,2]
[353360763,1739795456279,-1495.63,0.00013698,2]
[353360764,1739795456288,-500.0,0.00013698,2]
[353360765,1739795456297,-837.73,0.00013698,2]
[353360766,1739795456306,-500.0,0.00013698,2]
[353360767,1739795456315,-1229.18,0.00013698,2]
[353360768,1739795456325,-891.09,0.00013698,2]
[353360769,1739795456334,-2286.67,0.00013698,2]
[353360770,1739795456344,-500.0,0.00013698,2]
[353360771,1739795456353,-500.0,0.00013698,2]
[353360772,1739795456362,-1799.92,0.00013698,2]
[353360773,1739795456372,-500.0,0.00013698,2]
[353360774,1739795456382,-1699.5,0.00013698,2]
[353360775,1739795456391,-500.0,0.00013698,2]
[353360776,1739795456401,-1170.73,0.00013698,2]
[353360777,1739795456410,-500.0,0.00013698,2]
[353360778,1739795456420,-1240.622107,0.00013698,2]
[353360779,1739795456429,-1443.9,0.00013698,2]
[353360780,1739795456438,-500.0,0.00013698,2]
[353360781,1739795456448,-2411.41,0.00013698,2]
[353360782,1739795456457,-500.0,0.00013698,2]
[353360783,1739795456467,-1692.84,0.00013698,2]
[353360784,1739795456477,-1240.622107,0.00013698,2]
[353360785,1739795456486,-1729.18,0.00013698,2]
[353360786,1739795456496,-500.0,0.00013698,2]
[353360787,1739795456505,-502.765203,0.00013698,2]
[353360788,1739795456514,-1013.73,0.00013698,2]
[353360789,1739795456523,-502.61826202,0.00013698,2]
[353360790,1739795456532,-998.25,0.00013698,2]
[353360791,1739795456542,-151.0,0.00013698,2]
[353360792,1739795456551,-2340.6,0.00013698,2]
[353360793,1739795456560,-500.0,0.00013698,2]
[353360794,1739795456569,-2360.94,0.00013698,2]
[353360795,1739795456578,-500.0,0.00013698,2]
[353360796,1739795456588,-637.38,0.00013698,2]
[353360797,1739795456597,-838.22,0.00013698,2]
[353360798,1739795456607,-500.0,0.00013698,2]
[353360799,1739795456616,-500.0,0.00013698,2]
[353360800,1739795456625,-500.55,0.00013698,2]
[353360801,1739795456634,-207.56209949,0.00013698,2]
[353360802,1739795456643,-89192.64212027,0.00013698,2]
[353360803,1739795456656,-520.12152532,0.00013698,2]
[353360804,1739795456673,-480.75352211,0.00013698,2]
[353360805,1739795456714,-3179.77,0.00013698,2]
[353360806,1739795456724,-501.42376727,0.00013698,2]
[353360807,1739795456733,-3152.46563224,0.00013698,2]
[353360808,1739795457063,500.0,0.0002,120]
[353360809,1739795459961,500.0,0.0002,120]
[353360819,1739795794934,588.26,0.0002,120]
[353360820,1739795858964,400.6035,8.119e-05,2]
[353360821,1739796232587,1890.8891,8.699e-05,2]
[353360822,1739796277275,1080.9986,8.699e-05,2]
[353360823,1739796306793,-800.0,0.00010058,2]
[353360824,1739796306818,-800.0,0.00010058,2]
[353360825,1739796306840,-150.0,0.00010058,2]
[353360826,1739796306863,-495.37,0.00010058,2]
[353360827,1739796306886,-499.13,0.00010058,2]
[353360828,1739796306909,-502.21,0.00010058,2]
[353360829,1739796306934,-492.8,0.00010058,2]
[353360830,1739796306957,-506.99,0.00010058,2]
[353360831,1739796306981,-508.14,0.00010058,2]
[353360832,1739796307007,-496.59,0.00010058,2]
[353360833,1739796307038,-494.47,0.00010058,2]
[353360834,1739796307062,-495.21,0.00010058,2]
[353360835,1739796307085,-500.0,0.00010058,2]
[353360836,1739796307108,-494.98,0.00010058,2]
[353360837,1739796307131,-490.15,0.00010058,2]
[353360838,1739796307155,-491.6,0.00010058,2]
[353360839,1739796307182,-490.18,0.00010058,2]
[353360840,1739796307207,-503.5,0.00010058,2]
[353360841,1739796307236,-509.24,0.00010058,2]
[353360842,1739796307260,-505.13,0.00010058,2]
[353360843,1739796307285,-491.8,0.00010058,2]
[353360844,1739796307316,-491.97,0.00010058,2]
[353360845,1739796307341,-500.13,0.00010058,2]
[353360846,1739796307364,-158.68,0.00010137,2]
[353360847,1739796307386,-152.29,0.00010558,2]
[353360848,1739796307409,-150.0,0.00011064,2]
[353360849,1739796307432,-150.0,0.00011099,2]
[353360850,1739796307455,-500.0,0.00011154,2]
[353360851,1739796307478,-800.0,0.00011428,2]
[353360852,1739796307500,-800.0,0.00011428,2]
[353360853,1739796307523,-250.0,0.00012494,2]
[353360854,1739796307548,-800.0,0.00012798,2]
[353360855,1739796307571,-800.0,0.00012798,2]
[353360856,1739796307593,-4071.70165403,0.00013,3]
[353360857,1739796307616,-150.0,0.00013446,2]
[353360858,1739796307639,-202.0,0.0001347,2]
[353360859,1739796307661,-1972.07,0.00013494,2]
[353360860,1739796307684,-986.71,0.00013494,2]
[353360861,1739796307707,-986.71,0.00013494,2]
[353360862,1739796307729,-986.71,0.00013494,2]
[353360863,1739796307751,-986.71,0.00013494,2]
[353360864,1739796307773,-986.71,0.00013494,2]
[353360865,1739796307795,-582.65,0.00013494,2]
[353360866,1739796307817,-1550.65,0.000135,2]
[353360867,1739796307839,-986.71,0.000135,2]
[353360868,1739796307861,-537.2763228,0.00013559,2]
[353360869,1739796307883,-3942.00821437,0.00013598,2]
[353360870,1739796307908,-314.81923678,0.00013598,2]
[353360871,1739796307930,-3942.0082143,0.00013633,2]
[353360872,1739796307952,-202.0,0.0001365,2]
[353360873,1739796307975,-200.0,0.00013657,2]
[353360874,1739796307999,-71229.45595683,0.0001366,2]
[353360875,1739796313648,152.3,0.00010558,2]
[353360876,1739796320524,674.6,0.00010861,2]
[353360877,1739796320721,674.6,0.00013125,2]
[353360878,1739796322447,-499.99,0.00013668,2]
[353360879,1739796322475,-3547.05040089,0.00013668,2]
[353360880,1739796423977,2000.0,0.0002,120]
[353360882,1739796508082,400.0,0.0002,120]
[353360883,1739796520368,400.0,0.0002,120]
[353361639,1739796595154,-931.44,8.927e-05,2]
[353361640,1739796595180,-300.0,8.972e-05,2]
[353361641,1739796595205,-21768.56,8.973e-05,2]
[353361648,1739796632340,-2201.57792837,8.836e-05,2]
[353361652,1739796632817,-0.02940507,8.836e-05,2]
[353361653,1739796632829,-1528.71420741,8.836e-05,2]
[353361662,1739796632878,-4183.5135596,8.836e-05,2]
[353361666,1739796632890,-1722.96518487,8.836e-05,2]
[353361671,1739796632913,-2776.99449996,8.836e-05,2]
[353361674,1739796632924,-257.03272232,8.836e-05,2]
[353361679,1739796632935,-577.50933627,8.836e-05,2]
[353361704,1739796638222,-355.35304456,8.836e-05,2]
[353361705,1739796638278,-1996.31011157,8.836e-05,2]
[353361706,1739796638289,-1220.7996,8.973e-05,2]
[353361707,1739796638301,-1658.23802081,9.87e-05,2]
[353361708,1739796638311,-150.0,9.87e-05,2]
[353361709,1739796638321,-200.0,9.87e-05,2]
[353361710,1739796638331,-700.0,0.00010058,2]
[353361711,1739796638341,-150.0,0.00010063,2]
[353361712,1739796638352,-150.0,0.0001046,2]
[353361713,1739796638361,-300.0,0.0001046,2]
[353361714,1739796638372,-7648.72611354,0.00010461,2]
[353361715,1739796638403,-1023.04403923,0.00010461,2]
[353361716,1739796638415,-865.68892614,0.00010461,2]
[353361717,1739796638528,-1369.714304,0.00010461,2]
[353361849,1739796640444,-800.6046,0.00010461,2]
[353361850,1739796640558,-278.23999998,0.00010461,2]
[353361851,1739796640570,-964.77482423,0.00010461,2]
[353361855,1739796643482,-7806.74460825,0.00010461,2]
[353361856,1739796643494,-3103.3582,0.00010461,2]
[353361857,1739796643538,-21833.74175674,0.00010461,2]
[353361858,1739796643548,-496.57,0.00011154,2]
[353361859,1739796643557,-700.0,0.00011154,2]
[353361860,1739796643567,-500.0,0.00011154,2]
[353361861,1739796643577,-150.0,0.00011391,2]
[353361862,1739796643587,-700.0,0.00011428,2]
[353361863,1739796643597,-420.0,0.00011501,2]
[353361864,1739796643611,-155.54,0.00011943,2]
[353361865,1739796643623,-1413.82655868,0.0001233,2]
[353361866,1739796643633,-370.35,0.00012494,2]
[353361867,1739796643643,-700.0,0.00012524,2]
[353361868,1739796643653,-485.0,0.00012645,2]
[353361869,1739796643663,-1000.0,0.0001272,2]
[353361870,1739796643673,-700.0,0.00012798,2]
[353361871,1739796643683,-3768.42534292,0.00012878,2]
[353361872,1739796643693,-166.21,0.00012917,2]
[353361873,1739796643703,-500.0,0.00013,2]
[353361874,1739796643713,-986.71,0.00013078,2]
[353361875,1739796643723,-158.509536,0.00013152,3]
[353361876,1739796643733,-737.73589506,0.00013228,2]
[353361877,1739796643743,-400.0,0.000133,4]
[353361878,1739796643753,-800.0,0.000134,4]
[353361879,1739796643765,-365.50771563,0.0001343,2]
[353361880,1739796643775,-150.0,0.00013446,2]
[353361881,1739796643785,-8405.65755518,0.00013487,2]
[353361882,1739796643796,-300.0,0.00013498,2]
[353361883,1739796643812,-878.22,0.00013498,2]
[353361884,1739796643823,-150.0,0.00013498,2]
[353361885,1739796643834,-1200.0,0.000135,4]
[353361886,1739796643844,-358.1842152,0.00013559,2]
[353361887,1739796643854,-4000.0,0.0001356,2]
[353361888,1739796643864,-1517.1489895,0.00013598,2]
[353361889,1739796643875,-2798.90153136,0.00013598,2]
[353361890,1739796643885,-321.63281495,0.00013598,2]
[353361891,1739796643895,-943.6410597,0.00013598,2]
[353361892,1739796643905,-163.91508072,0.00013598,2]
[353361893,1739796643915,-1600.0,0.000136,4]
[353361894,1739796643926,-2798.90153135,0.00013633,2]
[353361896,1739796643936,-1517.14898946,0.00013634,2]
[353361897,1739796643947,-943.64105968,0.00013639,2]
[353361898,1739796643957,-2798.90153135,0.00013667,2]
[353361899,1739796643967,-509.76,0.00013668,2]
[353361900,1739796643978,-1517.14898946,0.0001367,2]
[353361901,1739796643988,-583.18019151,0.00013679,2]
[353361902,1739796643998,-943.64105968,0.0001368,2]
[353361903,1739796644008,-1000.0,0.00013697,2]
[353361904,1739796644017,-491.18,0.00013698,2]
[353361905,1739796644027,-500.0,0.00013698,2]
[353361906,1739796644036,-500.0,0.00013698,2]
[353361907,1739796644046,-500.0,0.00013698,2]
[353361908,1739796644056,-500.0,0.00013698,2]
[353361909,1739796644065,-325.09192853,0.00013698,2]
[353361910,1739796644075,-501.87522391,0.00013698,2]
[353361911,1739796644085,-498.01887829,0.00013698,2]
[353361912,1739796644094,-500.0,0.00013698,2]
[353361913,1739796644104,-504.04022462,0.00013698,2]
[353361914,1739796644113,-500.0,0.00013698,2]
[353361915,1739796644123,-599.98096343,0.00013698,2]
[353361916,1739796644132,-500.0,0.00013698,2]
[353361917,1739796644141,-500.0,0.00013698,2]
[353361918,1739796644151,-500.0,0.00013698,2]
[353361919,1739796644160,-296.39442293,0.00013698,2]
[353361920,1739796644170,-502.00482307,0.00013698,2]
[353361921,1739796644179,-212.73284906,0.00013698,2]
[353361922,1739796644189,-500.0,0.00013698,2]
[353361923,1739796644201,-500.0,0.00013698,2]
[353361924,1739796644211,-500.0,0.00013698,2]
[353361925,1739796644221,-500.0,0.00013698,2]
[353361926,1739796644232,-500.0,0.00013698,2]
[353361927,1739796644241,-500.0,0.00013698,2]
[353361928,1739796644251,-500.0,0.00013698,2]
[353361929,1739796644260,-500.0,0.00013698,2]
[353361930,1739796644269,-500.0,0.00013698,2]
[353361931,1739796644278,-500.0,0.00013698,2]
[353361932,1739796644287,-500.0,0.00013698,2]
[353361933,1739796644297,-500.0,0.00013698,2]
[353361934,1739796644310,-509.84415695,0.00013698,2]
[353361935,1739796644319,-500.0,0.00013698,2]
[353361936,1739796644329,-500.0,0.00013698,2]
[353361937,1739796644338,-967.88,0.00013698,2]
[353361938,1739796644349,-500.0,0.00013698,2]
[353361939,1739796644358,-500.0,0.00013698,2]
[353361940,1739796644368,-500.0,0.00013698,2]
[353361941,1739796644379,-500.0,0.00013698,2]
[353361942,1739796644388,-500.0,0.00013698,2]
[353361943,1739796644398,-500.0,0.00013698,2]
[353361944,1739796644407,-500.0,0.00013698,2]
[353361945,1739796644417,-500.0,0.00013698,2]
[353361946,1739796644427,-653.46,0.00013698,2]
[353361947,1739796644436,-500.0,0.00013698,2]
[353361948,1739796644446,-500.0,0.00013698,2]
[353361949,1739796644456,-500.0,0.00013698,2]
[353361950,1739796644466,-500.0,0.00013698,2]
[353361951,1739796644477,-500.0,0.00013698,2]
[353361952,1739796644491,-565.51,0.00013698,2]
[353361953,1739796644500,-500.0,0.00013698,2]
[353361954,1739796644509,-500.0,0.00013698,2]
[353361955,1739796644519,-500.0,0.00013698,2]
[353361956,1739796644528,-500.0,0.00013698,2]
[353361957,1739796644538,-500.0,0.00013698,2]
[353361958,1739796644548,-530.3,0.00013698,2]
[353361959,1739796644558,-500.0,0.00013698,2]
[353361960,1739796644568,-500.0,0.00013698,2]
[353361961,1739796644577,-500.0,0.00013698,2]
[353361962,1739796644587,-504.42717946,0.00013698,2]
[353361963,1739796644597,-500.0,0.00013698,2]
[353361964,1739796644607,-500.0,0.00013698,2]
[353361965,1739796644617,-500.0,0.00013698,2]
[353361966,1739796644626,-500.0,0.00013698,2]
[353361967,1739796644637,-500.0,0.00013698,2]
[353361968,1739796644647,-500.0,0.00013698,2]
[353361969,1739796644656,-500.0,0.00013698,2]
[353361970,1739796644666,-500.0,0.00013698,2]
[353361971,1739796644677,-343.62173597,0.00013698,2]
[353361972,1739796644686,-500.0,0.00013698,2]
[353361973,1739796644696,-500.0,0.00013698,2]
[353361974,1739796644705,-628.98,0.00013698,2]
[353361975,1739796644715,-500.0,0.00013698,2]
[353361976,1739796644725,-500.0,0.00013698,2]
[353361977,1739796644734,-500.0,0.00013698,2]
[353361978,1739796644744,-500.0,0.00013698,2]
[353361979,1739796644753,-500.0,0.00013698,2]
[353361980,1739796644763,-500.0,0.00013698,2]
[353361981,1739796644773,-500.0,0.00013698,2]
[353361982,1739796644783,-500.0,0.00013698,2]